bitfinex-derivatives/quotes_BTCF0:USTF0_20250108
["timestamp","ask_amount","ask_price","bid_price","bid_amount"]
[1736341662084,0.052466,95332.0,95318.0,0.052474]
[1736341662284,0.3608,95336.0,95318.0,0.052474]
[1736341662489,0.052468,95330.0,95319.0,0.052473]
[1736341662789,0.052468,95329.0,95324.0,0.3608]
[1736341664193,0.052469,95327.0,95316.0,0.052475]
[1736341664390,0.3608,95326.0,95316.0,0.052475]
[1736341664592,0.1263,95325.0,95313.0,0.3608]
[1736341664787,0.052476,95315.0,95313.0,0.24968546]
[1736341665893,0.3608,95318.0,95302.0,0.36144]
[1736341666094,0.052482,95304.0,95302.0,0.3608]
[1736341667714,0.060482,95304.0,95302.0,0.3608]
[1736341668112,0.064482,95304.0,95302.0,0.3608]
[1736341668814,0.052487,95295.0,95291.0,0.052489]
[1736341669016,0.052487,95295.0,95291.0,0.413289]
[1736341670003,0.052483,95301.0,95293.0,0.052488]
[1736341670207,0.004,95295.0,95294.0,0.052487]
[1736341670618,0.004,95304.0,95303.0,0.052482]
[1736341670919,0.052476,95315.0,95303.0,0.3608]
[1736341671115,0.01409184,95317.0,95311.0,0.3608]
[1736341671415,0.1194,95336.0,95311.0,0.3608]
[1736341671614,0.14032825,95325.0,95311.0,0.3608]
[1736341671811,0.052477,95313.0,95311.0,0.3608]
[1736341673712,0.3608,95324.0,95311.0,0.3608]
[1736341673713,0.003,95317.0,95311.0,0.3608]
[1736341674202,0.008,95313.0,95311.0,0.3618]
[1736341674406,0.052477,95312.0,95311.0,0.001]
[1736341676819,0.052477,95312.0,95302.0,0.3608]
[1736341676820,0.052482,95303.0,95302.0,0.3608]
[1736341678218,0.061482,95303.0,95302.0,0.3608]
[1736341679611,0.061482,95303.0,95289.0,0.3608]
[1736341679612,0.052489,95290.0,95289.0,0.3608]
[1736341680115,0.15859083,95300.0,95278.0,0.3608]
[1736341680116,0.3608,95298.0,95278.0,0.3608]
[1736341680315,0.052495,95279.0,95278.0,0.3608]
[1736341681621,0.052495,95279.0,95278.0,0.3628]
[1736341682515,0.052492,95285.0,95278.0,0.3628]
[1736341682916,0.052492,95285.0,95281.0,0.052494]
[1736341683114,0.3608,95315.0,95278.0,0.7236]
[1736341683308,0.052489,95291.0,95289.0,0.3608]
[1736341683518,0.052489,95291.0,95278.0,0.3628]
[1736341683519,0.052492,95285.0,95279.0,0.052495]
[1736341683817,0.51939083,95300.0,95278.0,0.7236]
[1736341684019,0.052479,95310.0,95304.0,0.052481]
[1736341684222,0.01384511,95314.0,95312.0,0.052477]
[1736341684426,0.052473,95321.0,95308.0,0.3608]
[1736341684723,0.052473,95321.0,95319.0,0.3608]
[1736341684919,0.052475,95316.0,95308.0,0.3608]
[1736341685315,0.052475,95316.0,95310.0,0.052478]
[1736341686019,0.0142775,95322.0,95314.0,0.052476]
[1736341686225,0.1217,95327.0,95308.0,0.3608]
[1736341686722,0.1217,95327.0,95309.0,0.052479]
[1736341686723,0.005,95314.0,95309.0,0.052479]
[1736341686922,0.005,95314.0,95311.0,0.052478]
[1736341687524,0.052475,95317.0,95311.0,0.052478]
[1736341687726,0.052476,95314.0,95308.0,0.3608]
[1736341688223,0.060476,95314.0,95308.0,0.413279]
[1736341688521,0.052478,95312.0,95308.0,0.413279]
[1736341689324,0.052478,95312.0,95309.0,0.052479]
[1736341690730,0.052478,95310.0,95308.0,0.3608]
[1736341693816,0.052478,95310.0,95296.0,0.47032]
[1736341694017,0.052485,95297.0,95296.0,0.47032]
[1736341694621,0.052485,95297.0,95296.0,0.83112]
[1736341694921,0.05249,95289.0,95288.0,0.3608]
[1736341695123,0.05249,95289.0,95272.0,0.3608]
[1736341695124,0.052487,95295.0,95272.0,0.3608]
[1736341695330,0.15859083,95282.0,95272.0,0.3608]
[1736341695528,0.15859083,95282.0,95265.0,0.36092052]
[1736341695529,0.3608,95279.0,95265.0,0.00012052]
[1736341695729,0.052503,95266.0,95265.0,0.00012052]
[1736341697626,0.052503,95266.0,95265.0,0.00212052]
[1736341698638,0.053503,95266.0,95265.0,0.00212052]
[1736341699223,0.052508,95256.0,95255.0,0.00157425]
[1736341700545,0.052508,95256.0,95255.0,0.00357425]
[1736341700730,0.052508,95256.0,95255.0,0.002]
[1736341700937,0.052508,95256.0,95236.0,0.47032]
[1736341701135,0.052517,95240.0,95236.0,0.47032]
[1736341701333,0.05252,95235.0,95234.0,0.3608]
[1736341701532,0.15859083,95246.0,95234.0,0.3608]
[1736341701736,0.052517,95240.0,95234.0,0.3608]
[1736341701925,0.052518,95239.0,95234.0,0.3608]
[1736341703131,0.15859083,95246.0,95234.0,0.3608]
[1736341703635,0.052521,95234.0,95216.0,0.1305]
[1736341703939,0.052528,95220.0,95216.0,0.1305]
[1736341704430,0.05253,95217.0,95210.0,0.1284]
[1736341704633,0.15859083,95220.0,95210.0,0.1284]
[1736341704832,0.052531,95215.0,95210.0,0.1284]
[1736341705843,0.17298262,95220.0,95210.0,0.1284]
[1736341706135,0.052538,95202.0,95201.0,0.00056]
[1736341706337,0.052538,95202.0,95197.0,0.00012843]
[1736341706544,0.052534,95209.0,95201.0,0.3608]
[1736341706737,0.052534,95209.0,95202.0,0.2597]
[1736341708044,0.052535,95208.0,95202.0,0.2597]
[1736341708227,0.052535,95207.0,95202.0,0.2597]
[1736341708544,0.15859083,95212.0,95197.0,0.00012843]
[1736341708733,0.052538,95202.0,95197.0,0.00012843]
[1736341708935,0.052534,95210.0,95200.0,0.4608]
[1736341709239,0.05333,95217.0,95209.0,0.3608]
[1736341709431,0.05253,95217.0,95209.0,0.3608]
[1736341709627,0.15859083,95220.0,95209.0,0.3608]
[1736341709827,0.052527,95223.0,95209.0,0.3608]
[1736341710036,0.15859083,95230.0,95210.0,0.1252]
[1736341710339,0.052527,95222.0,95211.0,0.052533]
[1736341710529,0.052528,95221.0,95210.0,0.1252]
[1736341710729,0.01345069,95229.0,95220.0,0.3608]
[1736341710940,0.05252,95235.0,95228.0,0.3608]
[1736341711139,0.052523,95230.0,95228.0,0.3608]
[1736341711935,0.001,95229.0,95228.0,0.3608]
[1736341712746,0.061523,95230.0,95228.0,0.3608]
[1736341712934,0.052527,95223.0,95220.0,0.3608]
[1736341713135,0.15859083,95230.0,95220.0,0.3608]
[1736341713335,0.052526,95224.0,95220.0,0.3608]
[1736341713934,0.052524,95228.0,95220.0,0.3608]
[1736341714137,0.052526,95225.0,95220.0,0.3608]
[1736341714331,0.003,95223.0,95221.0,0.052527]
[1736341715046,0.052526,95224.0,95220.0,0.3608]
[1736341715641,0.006,95223.0,95220.0,0.3608]
[1736341716038,0.058526,95223.0,95220.0,0.3608]
[1736341716242,0.01610884,95228.0,95220.0,0.3608]
[1736341716243,0.052527,95221.0,95220.0,0.3608]
[1736341716551,0.006,95224.0,95220.0,0.3608]
[1736341716740,0.003,95223.0,95220.0,0.3608]
[1736341716938,0.003,95223.0,95222.0,0.052527]
[1736341717747,0.006,95224.0,95222.0,0.052527]
[1736341717943,0.006,95223.0,95222.0,0.052527]
[1736341718140,0.052527,95222.0,95220.0,0.3608]
[1736341718533,0.003,95223.0,95221.0,0.052527]
[1736341718739,0.003,95223.0,95222.0,0.052527]
[1736341719250,0.05252,95235.0,95233.0,0.05252]
[1736341719445,0.3608,95246.0,95238.0,0.052518]
[1736341719645,0.3608,95246.0,95234.0,0.48496]
[1736341719842,0.3608,95246.0,95234.0,0.4844]
[1736341720040,0.052519,95236.0,95234.0,0.3608]
[1736341720441,0.052514,95245.0,95231.0,0.3608]
[1736341720643,0.052521,95233.0,95231.0,0.3608]
[1736341722339,0.055521,95233.0,95231.0,0.3608]
[1736341722744,0.003,95233.0,95232.0,0.052521]
[1736341723351,0.05251,95253.0,95246.0,0.052513]
[1736341723546,0.05251,95253.0,95252.0,0.3608]
[1736341724248,0.15859083,95270.0,95252.0,0.3608]
[1736341724450,0.1228,95278.0,95265.0,0.3608]
[1736341724657,0.00076,95289.0,95277.0,0.3608]
[1736341724953,0.052489,95291.0,95285.0,0.3608]
[1736341725144,0.0133134,95291.0,95288.0,0.05249]
[1736341725344,0.21887588,95296.0,95285.0,0.3608]
[1736341725555,0.21887588,95296.0,95295.0,0.3608]
[1736341726345,0.01369084,95299.0,95295.0,0.3608]
[1736341726546,0.052483,95302.0,95295.0,0.3608]
[1736341726752,0.15859083,95310.0,95295.0,0.3608]
[1736341727060,0.052483,95301.0,95295.0,0.3608]
[1736341727248,0.17167669,95310.0,95295.0,0.3608]
[1736341727443,0.052486,95297.0,95295.0,0.3608]
[1736341728245,0.052486,95297.0,95295.0,0.3668]
[1736341728446,0.052486,95297.0,95295.0,0.006]
[1736341729159,0.001,95296.0,95295.0,0.007]
[1736341729348,0.001,95296.0,95295.0,0.013]
[1736341729750,0.002,95297.0,95296.0,0.052486]
[1736341730454,0.001,95297.0,95296.0,0.052486]
[1736341731941,0.05248,95307.0,95295.0,0.007]
[1736341732148,0.05248,95307.0,95306.0,0.3608]
[1736341733460,0.01308586,95310.0,95306.0,0.3608]
[1736341733649,0.052477,95314.0,95306.0,0.3608]
[1736341733956,0.052477,95314.0,95311.0,0.052478]
[1736341733957,0.0130581,95314.0,95311.0,0.052478]
[1736341734259,0.052474,95317.0,95311.0,0.052478]
[1736341734448,0.1,95320.0,95314.0,0.3608]
[1736341734654,0.052475,95316.0,95314.0,0.3608]
[1736341735857,0.052475,95316.0,95314.0,0.3628]
[1736341736658,0.056475,95316.0,95314.0,0.3608]
[1736341736858,0.065475,95316.0,95314.0,0.3618]
[1736341737058,0.065475,95316.0,95314.0,0.001]
[1736341740557,0.065475,95316.0,95296.0,0.3608]
[1736341740558,0.052485,95297.0,95296.0,0.3608]
[1736341742360,0.052482,95303.0,95296.0,0.3608]
[1736341742564,0.01300652,95303.0,95296.0,0.3608]
[1736341742758,0.001,95297.0,95296.0,0.3608]
[1736341742958,0.001,95297.0,95288.0,0.1269]
[1736341742959,0.001,95297.0,95285.0,0.3608]
[1736341743155,0.05249,95289.0,95285.0,0.3608]
[1736341743559,0.1247,95296.0,95285.0,0.3608]
[1736341743767,0.177186,95296.0,95295.0,0.3608]
[1736341744565,0.1247,95296.0,95285.0,0.3648]
[1736341744769,0.05249,95289.0,95285.0,0.3648]
[1736341745368,0.1247,95296.0,95285.0,0.3648]
[1736341745582,0.052491,95287.0,95285.0,0.3648]
[1736341745866,0.052493,95284.0,95283.0,0.47032]
[1736341746070,0.15859083,95293.0,95275.0,0.3608]
[1736341746566,0.15859083,95293.0,95285.0,0.004]
[1736341746870,0.052492,95286.0,95285.0,0.004]
[1736341747056,0.052488,95293.0,95284.0,0.3608]
[1736341747262,0.05249,95289.0,95284.0,0.413292]
[1736341747666,0.052491,95287.0,95284.0,0.3608]
[1736341747871,0.004,95293.0,95284.0,0.3608]
[1736341748072,0.05249,95289.0,95284.0,0.3608]
[1736341748763,0.05249,95289.0,95285.0,0.001]
[1736341749468,0.06049,95289.0,95284.0,0.3618]
[1736341749774,0.008,95289.0,95288.0,0.05249]
[1736341750073,0.052492,95286.0,95284.0,0.3608]
[1736341750273,0.052492,95286.0,95285.0,0.001]
[1736341750667,0.052492,95286.0,95284.0,0.3608]
[1736341750870,0.052492,95286.0,95284.0,0.3618]
[1736341752477,0.06466011,95286.0,95284.0,0.3618]
[1736341752877,0.07166011,95286.0,95285.0,0.001]
[1736341753069,0.43246011,95286.0,95285.0,0.001]
[1736341753572,0.38096811,95286.0,95275.0,0.3608]
[1736341753782,0.15859083,95285.0,95261.0,0.3608]
[1736341753963,0.052501,95269.0,95261.0,0.3608]
[1736341754169,0.052498,95274.0,95263.0,0.052504]
[1736341754378,0.0525,95271.0,95269.0,0.3608]
[1736341755073,0.052505,95262.0,95261.0,0.3608]
[1736341756182,0.3608,95262.0,95251.0,0.1327]
[1736341756383,0.3608,95262.0,95241.0,0.53663828]
[1736341756384,0.052516,95242.0,95241.0,0.53663828]
[1736341756682,0.052521,95233.0,95232.0,0.18761567]
[1736341757068,0.052514,95245.0,95232.0,0.24013667]
[1736341757268,0.052517,95240.0,95238.0,0.3608]
[1736341758068,0.1881878,95246.0,95228.0,0.3608]
[1736341758271,0.15859083,95240.0,95228.0,0.3608]
[1736341758477,0.052521,95234.0,95228.0,0.3608]
[1736341758878,0.20023582,95246.0,95228.0,0.3608]
[1736341759081,0.052523,95230.0,95228.0,0.3608]
[1736341759276,0.052523,95230.0,95229.0,0.3608]
[1736341760283,0.053523,95230.0,95229.0,0.3608]
[1736341760592,0.001,95230.0,95229.0,0.3608]
[1736341760781,0.052513,95248.0,95233.0,0.052521]
[1736341760974,0.15859083,95250.0,95239.0,0.3608]
[1736341761175,0.052516,95243.0,95239.0,0.3608]
[1736341761778,0.052516,95243.0,95240.0,0.1275]
[1736341762279,0.052516,95243.0,95241.0,0.1245]
[1736341762986,0.056516,95243.0,95241.0,0.1245]
[1736341763193,0.062516,95243.0,95241.0,0.1245]
[1736341763486,0.052516,95241.0,95239.0,0.3618]
[1736341763682,0.052516,95241.0,95239.0,0.3608]
[1736341765577,0.052522,95230.0,95229.0,0.3608]
[1736341765873,0.052517,95240.0,95217.0,0.3608]
[1736341765874,0.052529,95218.0,95217.0,0.3608]
[1736341766278,0.15859083,95240.0,95217.0,0.3608]
[1736341766473,0.15859083,95240.0,95213.0,0.1279]
[1736341766474,0.01,95241.0,95216.0,0.3608]
[1736341766675,0.052529,95218.0,95216.0,0.3608]
[1736341766976,0.052535,95207.0,95206.0,0.4901]
[1736341767172,0.052535,95207.0,95206.0,0.1293]
[1736341767777,0.052535,95207.0,95205.0,0.00011087]
[1736341769489,0.06568055,95207.0,95205.0,0.00011087]
[1736341769678,0.42748055,95207.0,95206.0,0.007]
[1736341770387,0.42648055,95207.0,95205.0,0.00111087]
[1736341770783,0.06568055,95207.0,95205.0,0.00011087]
[1736341770980,0.06568055,95207.0,95206.0,0.001]
[1736341771187,0.05254,95198.0,95197.0,0.00012843]
[1736341771389,0.052544,95190.0,95180.0,0.3608]
[1736341771589,0.052544,95190.0,95189.0,0.3608]
[1736341772276,0.0001119,95190.0,95189.0,0.3608]
[1736341773182,0.06468055,95207.0,95197.0,0.05254]
[1736341773383,0.15859083,95220.0,95204.0,0.3608]
[1736341773578,0.052534,95210.0,95205.0,0.1311]
[1736341773788,0.17112893,95220.0,95205.0,0.1311]
[1736341774094,0.052537,95204.0,95203.0,0.3608]
[1736341774391,0.05258756,95204.0,95203.0,0.3608]
[1736341775291,0.05258756,95204.0,95191.0,0.2553]
[1736341775292,0.052537,95203.0,95194.0,0.3608]
[1736341775487,0.052541,95197.0,95194.0,0.3608]
[1736341776186,0.052537,95203.0,95194.0,0.3608]
[1736341776385,0.052537,95203.0,95202.0,0.3608]
[1736341777786,0.058537,95203.0,95202.0,0.3618]
[1736341778186,0.058537,95203.0,95202.0,0.001]
[1736341778386,0.061537,95203.0,95202.0,0.001]
[1736341780293,0.061537,95203.0,95202.0,0.3618]
[1736341780888,0.07416086,95203.0,95202.0,0.3618]
[1736341782096,0.07416086,95203.0,95202.0,0.001]
[1736341782998,0.07416086,95203.0,95202.0,0.3618]
[1736341783498,0.009,95203.0,95202.0,0.3618]
[1736341785197,0.00092,95226.0,95202.0,0.6618]
[1736341785403,0.1881878,95235.0,95232.0,0.052521]
[1736341785598,0.1881878,95235.0,95234.0,0.41332]
[1736341786199,0.00096001,95261.0,95235.0,0.052519]
[1736341786501,0.052504,95264.0,95258.0,0.3608]
[1736341786698,0.052505,95262.0,95258.0,0.3608]
[1736341787003,0.152506,95260.0,95258.0,0.3608]
[1736341787301,0.1,95260.0,95258.0,0.3608]
[1736341788293,0.1,95260.0,95259.0,0.052506]
[1736341788891,0.101,95260.0,95259.0,0.052506]
[1736341789295,0.104,95260.0,95259.0,0.052506]
[1736341789692,0.103,95260.0,95259.0,0.052506]
[1736341789891,0.1,95260.0,95259.0,0.052506]
[1736341791005,0.00620037,95260.0,95259.0,0.052506]
[1736341791304,0.00720037,95260.0,95259.0,0.181906]
[1736341791995,0.00620037,95260.0,95259.0,0.181906]
[1736341792891,0.00620037,95260.0,95259.0,0.183906]
[1736341793499,0.00620037,95260.0,95259.0,0.186906]
[1736341794003,0.00620037,95260.0,95259.0,0.181906]
[1736341794201,0.00620037,95260.0,95259.0,0.184906]
[1736341794904,0.00620037,95260.0,95259.0,0.185906]
[1736341795607,0.00620037,95260.0,95259.0,0.004]
[1736341796105,0.01790689,95260.0,95259.0,0.004]
[1736341796406,0.01790689,95260.0,95258.0,0.3608]
[1736341796601,0.052506,95259.0,95258.0,0.3608]
[1736341798803,0.052506,95259.0,95258.0,0.3618]
[1736341799191,0.052506,95259.0,95258.0,0.3608]
[1736341799397,0.055506,95259.0,95258.0,0.3608]
[1736341800107,0.057506,95259.0,95258.0,0.3608]
[1736341800601,0.005,95259.0,95258.0,0.3608]
[1736341802001,0.003,95259.0,95258.0,0.3608]
[1736341802201,0.001,95259.0,95258.0,0.3608]
[1736341802411,0.002,95259.0,95258.0,0.3608]
[1736341806602,0.052511,95251.0,95250.0,0.3608]
[1736341807510,0.052516,95242.0,95240.0,0.3608]
[1736341807901,0.2536,95241.0,95240.0,0.3608]
[1736341809418,0.2536,95241.0,95240.0,0.3618]
[1736341809711,0.2536,95241.0,95240.0,0.3668]
[1736341810416,0.26538484,95241.0,95240.0,0.3668]
[1736341812114,0.26538484,95241.0,95240.0,0.006]
[1736341812313,0.052522,95230.0,95229.0,0.3608]
[1736341812513,0.3608,95230.0,95225.0,0.00157477]
[1736341812708,0.3608,95230.0,95217.0,0.46890523]
[1736341812709,0.052529,95218.0,95217.0,0.46890523]
[1736341812908,0.413329,95218.0,95212.0,8.385e-05]
[1736341813120,0.3608,95218.0,95212.0,8.385e-05]
[1736341813320,0.3608,95218.0,95214.0,0.052531]
[1736341813507,0.3608,95218.0,95212.0,8.385e-05]
[1736341813508,0.3608,95218.0,95216.0,0.05253]
[1736341813908,0.36168001,95230.0,95212.0,8.385e-05]
[1736341814103,0.052524,95228.0,95219.0,0.052528]
[1736341814304,0.3608,95230.0,95226.0,0.052524]
[1736341814705,0.36272,95230.0,95226.0,0.052524]
[1736341814912,0.3618,95230.0,95226.0,0.052524]
[1736341815316,0.001,95230.0,95226.0,0.052524]
[1736341815814,0.003,95230.0,95226.0,0.052524]
[1736341816405,0.06724176,95230.0,95212.0,8.385e-05]
[1736341816607,0.06724176,95230.0,95223.0,0.052526]
[1736341817414,0.3608,95226.0,95223.0,0.052526]
[1736341818319,0.3608,95226.0,95212.0,8.385e-05]
[1736341818618,0.052525,95225.0,95218.0,0.052529]
[1736341818911,0.3608,95226.0,95218.0,0.052529]
[1736341819116,0.052527,95222.0,95218.0,0.052529]
[1736341819312,0.3608,95226.0,95212.0,8.385e-05]
[1736341819517,0.05253,95216.0,95214.0,0.052531]
[1736341820213,0.052532,95213.0,95212.0,0.00108385]
[1736341820808,0.052532,95213.0,95212.0,8.385e-05]
[1736341822108,0.052532,95213.0,95212.0,0.00508385]
[1736341822720,0.052532,95213.0,95212.0,0.00608385]
[1736341823408,0.06411295,95213.0,95212.0,0.00608385]
[1736341825214,0.07011295,95213.0,95212.0,0.00208385]
[1736341825422,0.07011295,95213.0,95212.0,0.00108385]
[1736341825606,0.07311295,95213.0,95212.0,0.00108385]
[1736341825808,0.07511295,95213.0,95212.0,0.00108385]
[1736341826223,0.07611295,95213.0,95212.0,0.00108385]
[1736341829613,0.02358095,95213.0,95212.0,0.00108385]
[1736341830017,0.02358095,95213.0,95212.0,0.05361585]
[1736341830530,0.02358095,95213.0,95212.0,0.00108385]
[1736341837121,0.02358095,95213.0,95212.0,0.12198385]
[1736341837529,0.02358095,95213.0,95212.0,0.24158385]
[1736341838326,0.012,95213.0,95212.0,0.24158385]
[1736341838527,0.006,95213.0,95212.0,0.65938385]
[1736341838731,0.21887588,95228.0,95227.0,0.052524]
[1736341839031,0.03217588,95228.0,95227.0,0.884044]
[1736341839227,0.25055994,95234.0,95233.0,0.052521]
[1736341840026,0.01161494,95247.0,95229.0,0.3608]
[1736341840027,0.052515,95244.0,95229.0,0.3608]
[1736341840220,0.3608,95254.0,95241.0,0.3608]
[1736341840423,0.052515,95243.0,95241.0,0.3608]
[1736341840629,0.052515,95243.0,95241.0,0.413316]
[1736341841035,0.3608,95254.0,95241.0,0.3608]
[1736341841036,0.052512,95249.0,95241.0,0.3608]
[1736341841227,0.052512,95249.0,95246.0,0.052513]
[1736341841418,0.052512,95249.0,95247.0,0.052513]
[1736341842432,0.37246168,95254.0,95250.0,0.052511]
[1736341843330,0.3608,95254.0,95241.0,0.3608]
[1736341843537,0.00620037,95260.0,95252.0,0.3608]
[1736341843727,0.00620037,95260.0,95259.0,0.052506]
[1736341845728,0.00620037,95260.0,95259.0,0.055506]
[1736341846331,0.00620037,95260.0,95259.0,0.056506]
[1736341849537,0.00620037,95260.0,95259.0,0.057506]
[1736341857045,0.00620037,95260.0,95259.0,0.231806]
[1736341858550,3.7e-07,95260.0,95259.0,0.531806]
[1736341858853,3.7e-07,95260.0,95259.0,0.892606]
[1736341860545,0.6,95300.0,95271.0,0.1743]
[1736341860751,0.35820535,95300.0,95299.0,0.052484]
[1736341861136,0.35820535,95300.0,95299.0,0.459184]
[1736341861338,0.23863035,95300.0,95299.0,0.459184]
[1736341862039,0.00855735,95300.0,95299.0,0.284884]
[1736341862235,3.5e-07,95300.0,95299.0,0.284884]
[1736341863047,3.5e-07,95300.0,95299.0,0.285884]
[1736341863344,3.5e-07,95300.0,95299.0,0.053484]
[1736341863538,3.5e-07,95300.0,95299.0,0.523844]
[1736341864344,0.3608,95326.0,95318.0,0.052474]
[1736341864640,0.42470353,95326.0,95318.0,0.052474]
[1736341865045,0.41327,95326.0,95318.0,0.052474]
[1736341865548,0.102,95320.0,95318.0,0.053474]
[1736341865940,0.103,95320.0,95318.0,0.053474]
[1736341866439,0.103,95320.0,95309.0,0.3608]
[1736341866640,0.052474,95318.0,95316.0,0.052475]
[1736341866852,0.052474,95319.0,95310.0,0.15842596]
[1736341867054,0.052474,95319.0,95310.0,0.10594796]
[1736341867351,0.052474,95319.0,95315.0,0.052475]
[1736341868147,0.3608,95316.0,95308.0,0.052479]
[1736341868448,0.052476,95315.0,95300.0,0.10594796]
[1736341868648,0.00088001,95316.0,95314.0,0.052476]
[1736341868950,0.105,95320.0,95319.0,0.052473]
[1736341869152,0.101,95320.0,95319.0,0.052473]
[1736341869650,0.101,95320.0,95315.0,0.001]
[1736341869945,0.052479,95310.0,95290.0,0.10594796]
[1736341870151,0.2412,95309.0,95307.0,0.05248]
[1736341870346,0.3608,95309.0,95307.0,0.05248]
[1736341870740,0.3608,95309.0,95290.0,0.10594796]
[1736341870741,0.3608,95308.0,95290.0,0.10594796]
[1736341870951,0.3608,95300.0,95294.0,0.052487]
[1736341871246,0.3608,95300.0,95288.0,0.05249]
[1736341871451,0.052488,95293.0,95288.0,0.05249]
[1736341871844,0.3608,95300.0,95282.0,0.052494]
[1736341872040,0.51948872,95300.0,95282.0,0.052494]
[1736341872247,0.3608,95283.0,95282.0,0.052494]
[1736341872845,0.3608,95283.0,95274.0,0.47028]
[1736341872846,0.052498,95275.0,95274.0,0.47028]
[1736341874845,0.052498,95275.0,95274.0,0.47328]
[1736341875648,0.052498,95275.0,95274.0,0.47428]
[1736341876648,0.052498,95275.0,95274.0,0.004]
[1736341876951,0.413298,95275.0,95274.0,0.004]
[1736341877152,0.3608,95275.0,95251.0,0.052511]
[1736341877451,0.413304,95263.0,95245.0,0.83108]
[1736341877846,0.413304,95263.0,95245.0,1.01815258]
[1736341878154,0.413304,95263.0,95258.0,0.052507]
[1736341878348,0.3608,95263.0,95262.0,0.05407919]
[1736341878654,0.3608,95263.0,95262.0,0.00157419]
[1736341878855,0.413304,95263.0,95262.0,0.00157419]
[1736341879057,0.413304,95263.0,95262.0,0.00457419]
[1736341879858,0.413304,95263.0,95262.0,0.00157419]
[1736341880154,0.414304,95263.0,95262.0,0.00157419]
[1736341880757,0.3618,95263.0,95262.0,0.00157419]
[1736341882354,0.001,95263.0,95262.0,0.00157419]
[1736341884550,0.007,95263.0,95262.0,0.00157419]
[1736341884956,0.001,95263.0,95262.0,0.00357419]
[1736341885651,0.002,95263.0,95262.0,0.00157419]
[1736341886052,0.001,95263.0,95262.0,0.00157419]
[1736341886953,0.003,95263.0,95262.0,0.00157419]
[1736341887648,0.002,95263.0,95262.0,0.00157419]
[1736341887962,0.003,95263.0,95262.0,0.00157419]
[1736341888348,0.002,95263.0,95262.0,0.00157419]
[1736341888651,0.052512,95250.0,95246.0,0.052513]
[1736341888846,0.3608,95256.0,95246.0,0.052513]
[1736341889052,0.052512,95249.0,95246.0,0.052513]
[1736341890249,0.3608,95256.0,95246.0,0.052513]
[1736341890454,0.052513,95248.0,95246.0,0.052513]
[1736341893656,0.052509,95255.0,95254.0,0.052509]
[1736341893851,0.3608,95256.0,95254.0,0.052509]
[1736341894952,0.003,95255.0,95254.0,0.052509]
[1736341895349,0.41418801,95256.0,95254.0,0.052509]
[1736341895669,0.3638,95256.0,95244.0,0.3608]
[1736341895854,0.052512,95250.0,95246.0,0.052513]
[1736341896054,0.004,95255.0,95246.0,0.052513]
[1736341896458,0.004,95255.0,95242.0,0.1178]
[1736341896459,0.052515,95243.0,95242.0,0.1178]
[1736341897057,0.052514,95246.0,95230.0,0.052522]
[1736341897263,0.05252,95234.0,95231.0,0.052522]
[1736341897456,0.3608,95247.0,95231.0,0.052522]
[1736341897760,0.05252,95234.0,95231.0,0.052522]
[1736341897957,0.052521,95233.0,95231.0,0.052522]
[1736341898554,0.052521,95233.0,95231.0,0.059522]
[1736341899255,0.053521,95233.0,95231.0,0.059522]
[1736341900057,0.053521,95233.0,95231.0,0.061522]
[1736341903658,0.001,95233.0,95231.0,0.061522]
[1736341904064,0.001,95233.0,95232.0,0.3608]
[1736341905259,0.0114106,95240.0,95232.0,0.3608]
[1736341905454,0.052517,95241.0,95240.0,0.052517]
[1736341906062,0.0113382,95243.0,95232.0,0.3688]
[1736341906255,0.3608,95247.0,95246.0,0.052514]
[1736341906669,0.3608,95272.0,95245.0,0.3608]
[1736341906869,0.052506,95261.0,95259.0,0.052506]
[1736341907968,0.052506,95259.0,95258.0,0.3608]
[1736341908965,0.3608,95261.0,95245.0,0.3608]
[1736341909166,0.052512,95249.0,95245.0,0.413314]
[1736341909466,0.052512,95249.0,95245.0,0.052514]
[1736341909972,0.052512,95249.0,95246.0,0.052514]
[1736341910267,0.052512,95249.0,95247.0,0.052513]
[1736341911365,0.01120194,95249.0,95247.0,0.052513]
[1736341911564,0.2431,95254.0,95251.0,0.052511]
[1736341911870,0.002,95259.0,95258.0,0.052507]
[1736341912279,0.052502,95267.0,95260.0,0.052506]
[1736341912574,0.3608,95261.0,95260.0,0.052506]
[1736341913564,0.3628,95261.0,95260.0,0.052506]
[1736341913971,0.37423112,95261.0,95260.0,0.052506]
[1736341914567,0.01343112,95261.0,95260.0,0.052506]
[1736341915365,0.01443112,95261.0,95260.0,0.052506]
[1736341916173,0.01443112,95261.0,95255.0,0.3608]
[1736341916369,0.052508,95256.0,95255.0,0.3608]
[1736341919178,0.052508,95256.0,95255.0,0.413309]
[1736341919370,0.01143112,95261.0,95255.0,0.3608]
[1736341919572,0.052506,95261.0,95259.0,0.052506]
[1736341919880,0.052506,95260.0,95259.0,0.052506]
[1736341920676,0.001,95261.0,95260.0,0.052506]
[1736341920974,0.053505,95261.0,95260.0,0.052506]
[1736341921174,0.001,95261.0,95255.0,0.3608]
[1736341921676,0.052508,95257.0,95255.0,0.413309]
[1736341921876,0.052508,95257.0,95256.0,0.052508]
[1736341922063,0.01117354,95261.0,95260.0,0.052506]
[1736341922270,0.052505,95262.0,95260.0,0.052506]
[1736341923266,0.3722719,95272.0,95255.0,0.3608]
[1736341923465,0.052508,95256.0,95252.0,0.05251]
[1736341923869,0.052508,95256.0,95253.0,0.3608]
[1736341924072,0.052508,95256.0,95254.0,0.052509]
[1736341927682,0.248,95277.0,95268.0,0.052501]
[1736341927980,0.052499,95272.0,95271.0,0.3608]